bitfinex-derivatives/quotes_BTCF0:USTF0_20250514
["timestamp","ask_amount","ask_price","bid_price","bid_amount"]
[1747243059787,1.66129265,103060.0,103050.0,0.01000008]
[1747243059985,1.66129265,103060.0,103050.0,8e-08]
[1747243060186,0.81986484,103060.0,103050.0,0.19405148]
[1747243060488,1.10466484,103060.0,103050.0,0.04160008]
[1747243060689,0.61986484,103060.0,103050.0,0.23565148]
[1747243060888,1.10458484,103060.0,103050.0,0.26595148]
[1747243061089,1.10458484,103060.0,103050.0,0.45229929]
[1747243061290,1.10458484,103060.0,103050.0,0.26595148]
[1747243061787,1.10458484,103060.0,103050.0,0.45229929]
[1747243061788,0.86210484,103060.0,103050.0,0.45229929]
[1747243061982,0.25906484,103060.0,103050.0,0.81309929]
[1747243062293,0.50142484,103060.0,103050.0,0.81309929]
[1747243062589,0.22726484,103060.0,103050.0,0.91013485]
[1747243063282,0.22726484,103060.0,103050.0,0.78018704]
[1747243063590,0.25906484,103060.0,103050.0,0.78018704]
[1747243064885,0.25906484,103060.0,103050.0,0.55583564]
[1747243065086,0.61986484,103060.0,103050.0,0.45880008]
[1747243065302,0.61986484,103060.0,103050.0,0.68445148]
[1747243065585,0.61986484,103060.0,103050.0,0.96783485]
[1747243065989,1.18621265,103060.0,103050.0,0.44880008]
[1747243066288,0.82621265,103060.0,103050.0,0.45880008]
[1747243066494,0.63986484,103060.0,103050.0,0.45880008]
[1747243066985,0.61986484,103060.0,103050.0,0.45880008]
[1747243067191,0.25906484,103060.0,103050.0,0.81960008]
[1747243067392,0.50114484,103060.0,103050.0,0.49160008]
[1747243067778,0.50094484,103060.0,103050.0,0.49160008]
[1747243068987,0.50094484,103060.0,103050.0,0.07440008]
[1747243069890,0.50022484,103060.0,103050.0,0.26845148]
[1747243070091,0.86102484,103060.0,103050.0,0.07440008]
[1747243070491,0.86102484,103060.0,103050.0,0.26845148]
[1747243071186,0.86102484,103060.0,103050.0,0.07440008]
[1747243071588,0.86102484,103060.0,103050.0,0.26845148]
[1747243072099,0.86102484,103060.0,103050.0,0.07440008]
[1747243075098,0.86102484,103060.0,103050.0,0.26845148]
[1747243075294,0.86266484,103060.0,103050.0,0.26845148]
[1747243075796,0.58806484,103060.0,103050.0,0.45479929]
[1747243076101,0.58806484,103060.0,103050.0,0.26845148]
[1747243076800,0.19646484,103060.0,103050.0,2.31559929]
[1747243076997,0.19646484,103060.0,103050.0,2.84122266]
[1747243077300,0.19646484,103060.0,103050.0,2.65487485]
[1747243078196,0.55726484,103060.0,103050.0,2.10772704]
[1747243078393,0.22936484,103060.0,103050.0,2.65487485]
[1747243078597,0.26016484,103060.0,103050.0,1.86548704]
[1747243078797,0.26016484,103060.0,103050.0,2.22628704]
[1747243079899,0.26016484,103060.0,103050.0,2.50967085]
[1747243080096,0.19646484,103060.0,103050.0,2.50967085]
[1747243080498,0.19646484,103060.0,103050.0,2.69601866]
[1747243081102,0.19646484,103060.0,103050.0,2.82983485]
[1747243081304,0.25976484,103060.0,103050.0,2.82983485]
[1747243081500,0.62056484,103060.0,103050.0,2.46903485]
[1747243081902,0.62056484,103060.0,103050.0,1.99160008]
[1747243081903,0.82056484,103060.0,103050.0,1.99160008]
[1747243082101,0.65056484,103060.0,103050.0,1.99160008]
[1747243082301,0.65056484,103060.0,103050.0,0.49160008]
[1747243082803,1.13011265,103060.0,103050.0,0.45880008]
[1747243083105,1.08011265,103060.0,103050.0,8e-08]
[1747243083297,1.41011265,103060.0,103050.0,8e-08]
[1747243083793,1.08011265,103060.0,103050.0,8e-08]
[1747243083997,1.15011265,103060.0,103050.0,8e-08]
[1747243084799,1.45011265,103060.0,103050.0,8e-08]
[1747243085106,1.40011265,103060.0,103050.0,8e-08]
[1747243086094,1.74714865,103060.0,103050.0,8e-08]
[1747243088491,1.21376484,103060.0,103050.0,8e-08]
[1747243088708,1.15691265,103060.0,103050.0,8e-08]
[1747243089006,1.32311265,103060.0,103050.0,8e-08]
[1747243089190,1.39311265,103060.0,103050.0,8e-08]
[1747243089391,1.70311265,103060.0,103050.0,8e-08]
[1747243090193,1.32311265,103060.0,103050.0,8e-08]
[1747243090392,1.51311265,103060.0,103050.0,8e-08]
[1747243090898,1.32704484,103060.0,103050.0,8e-08]
[1747243091307,1.32704484,103060.0,103050.0,0.03310008]
[1747243091805,1.13704484,103060.0,103050.0,0.03310008]
[1747243092006,1.13704484,103060.0,103050.0,0.07590008]
[1747243092194,0.65056484,103060.0,103050.0,0.26995148]
[1747243092399,0.89400484,103060.0,103050.0,0.26995148]
[1747243092601,0.89400484,103060.0,103050.0,0.30225148]
[1747243093710,0.89348484,103060.0,103050.0,0.30225148]
[1747243094210,0.89348484,103060.0,103050.0,0.10820008]
[1747243094411,1.35983265,103060.0,103050.0,0.01000008]
[1747243096610,0.89348484,103060.0,103050.0,0.01000008]
[1747243096913,0.89348484,103060.0,103050.0,0.07580008]
[1747243097613,0.89348484,103060.0,103050.0,0.26985148]
[1747243098019,0.65056484,103060.0,103050.0,0.26985148]
[1747243098211,0.89280484,103060.0,103050.0,0.26985148]
[1747243099017,0.62056484,103060.0,103050.0,0.45619929]
[1747243100119,0.19646484,103060.0,103050.0,1.10038266]
[1747243100513,0.19646484,103060.0,103050.0,1.19741866]
[1747243101413,0.19646484,103060.0,103050.0,1.01107085]
[1747243101619,0.19646484,103060.0,103050.0,0.55323485]
[1747243101814,0.22816484,103060.0,103050.0,0.55323485]
[1747243102013,0.22816484,103060.0,103050.0,1.86688704]
[1747243102522,0.25926484,103060.0,103050.0,2.04323485]
[1747243102828,0.22816484,103060.0,103050.0,2.41403485]
[1747243104721,0.22816484,103060.0,103050.0,2.22768704]
[1747243104911,0.22816484,103060.0,103050.0,2.41403485]
[1747243105322,0.22816484,103060.0,103050.0,2.05323485]
[1747243107923,0.22816484,103060.0,103050.0,2.47043485]
[1747243108724,0.22816484,103060.0,103050.0,2.83123485]
[1747243109023,0.19646484,103060.0,103050.0,2.83123485]
[1747243109227,0.01213925,103060.0,103050.0,3.01758266]
[1747243109412,0.20617175,103060.0,103050.0,3.11461866]
[1747243109724,0.20131858,103060.0,103050.0,3.11461866]
[1747243110128,0.20131858,103060.0,103050.0,2.92827085]
[1747243111722,0.20131858,103060.0,103050.0,2.83123485]
[1747243112526,0.20131858,103060.0,103050.0,3.01758266]
[1747243112823,0.20131858,103060.0,103050.0,2.83123485]
[1747243114026,0.20131858,103060.0,103050.0,2.47043485]
[1747243114232,0.59281858,103060.0,103050.0,0.59003564]
[1747243114530,0.62511858,103060.0,103050.0,0.78408704]
[1747243114831,0.65511858,103060.0,103050.0,0.78408704]
[1747243115126,0.65511858,103060.0,103050.0,0.45030008]
[1747243115928,0.89575858,103060.0,103050.0,0.45030008]
[1747243116527,0.89575858,103060.0,103050.0,0.83069929]
[1747243116726,0.59281858,103060.0,103050.0,1.15518266]
[1747243117127,0.59281858,103060.0,103050.0,0.58843564]
[1747243117330,0.98281858,103060.0,103050.0,0.57843564]
[1747243117532,0.98281858,103060.0,103050.0,0.48140008]
[1747243117533,1.01361858,103060.0,103050.0,0.48140008]
[1747243117732,0.84361858,103060.0,103050.0,0.48140008]
[1747243118925,0.84361858,103060.0,103050.0,0.41720008]
[1747243119325,0.84361858,103060.0,103050.0,0.44880008]
[1747243119527,0.84361858,103060.0,103050.0,0.45880008]
[1747243119728,0.84361858,103060.0,103050.0,0.44880008]
[1747243120034,0.84361858,103060.0,103050.0,0.63514789]
[1747243120837,1.09069858,103060.0,103050.0,0.63514789]
[1747243121334,1.09069858,103060.0,103050.0,0.44880008]
[1747243121732,1.09069858,103060.0,103050.0,0.85919929]
[1747243121733,0.90049858,103060.0,103050.0,0.85919929]
[1747243121935,0.65361858,103060.0,103050.0,0.86919929]
[1747243122433,0.65361858,103060.0,103050.0,0.67514789]
[1747243122842,0.62281858,103060.0,103050.0,0.86919929]
[1747243123026,0.26201858,103060.0,103050.0,0.45199929]
[1747243123922,0.26201858,103060.0,103050.0,0.90983485]
[1747243124543,0.20131858,103060.0,103050.0,1.51338266]
[1747243125029,0.19646559,103060.0,103050.0,1.75382266]
[1747243125438,0.00243309,103060.0,103050.0,1.75382266]
[1747243125832,0.19646559,103060.0,103050.0,1.75382266]
[1747243126042,0.19646559,103060.0,103050.0,3.25382266]
[1747243126634,0.00243309,103060.0,103050.0,3.35085866]
[1747243127040,0.19646559,103060.0,103050.0,3.35085866]
[1747243127739,0.19946559,103060.0,103050.0,3.35085866]
[1747243127945,0.20017175,103060.0,103050.0,3.35085866]
[1747243129845,0.00613925,103060.0,103050.0,3.35085866]
[1747243130048,0.20017175,103060.0,103050.0,3.35085866]
[1747243130343,0.00613925,103060.0,103050.0,3.35085866]
[1747243130842,0.3714443,103070.0,103060.0,0.1940325]
[1747243131037,0.3714443,103070.0,103060.0,0.84758031]
[1747243131237,0.3714443,103070.0,103060.0,0.84758039]
[1747243131438,0.3714443,103070.0,103060.0,0.94461595]
[1747243132143,0.3764443,103070.0,103060.0,0.94461595]
[1747243132849,0.3804443,103070.0,103060.0,0.94461595]
[1747243133640,0.4110443,103070.0,103060.0,0.94461595]
[1747243135040,0.4110443,103070.0,103060.0,1.36181595]
[1747243135642,0.4110443,103070.0,103060.0,1.17546814]
[1747243135832,0.7718443,103070.0,103060.0,1.00101595]
[1747243136033,0.7718443,103070.0,103060.0,0.55723564]
[1747243136430,0.7718443,103070.0,103060.0,0.42720008]
[1747243137232,0.7718443,103070.0,103060.0,0.41720008]
[1747243138142,1.0202843,103070.0,103060.0,0.41720008]
[1747243139034,1.0302843,103070.0,103060.0,0.41720008]
[1747243140443,1.21663211,103070.0,103060.0,0.41720008]
[1747243141043,1.39663211,103070.0,103060.0,8e-08]
[1747243142347,1.2102843,103070.0,103060.0,8e-08]
[1747243143247,0.7718443,103070.0,103060.0,0.39038039]
[1747243143438,0.7718443,103070.0,103060.0,0.19634789]
[1747243143634,0.7718443,103070.0,103060.0,0.42178039]
[1747243143841,1.0216443,103070.0,103060.0,0.45398039]
[1747243144050,1.0216443,103070.0,103060.0,0.22774789]
[1747243144642,0.7718443,103070.0,103060.0,0.23543258]
[1747243144850,0.7718443,103070.0,103060.0,0.42178039]
[1747243145051,0.7718443,103070.0,103060.0,0.45408039]
[1747243145855,0.7718443,103070.0,103060.0,0.26773258]
[1747243146447,1.0718443,103070.0,103060.0,0.23543258]
[1747243148651,0.4110443,103070.0,103060.0,0.78258039]
[1747243148853,0.4110443,103070.0,103060.0,0.81298039]
[1747243149151,0.4110443,103070.0,103060.0,0.72365872]
[1747243149354,0.4110443,103070.0,103060.0,0.91000653]
[1747243150746,0.4110443,103070.0,103060.0,0.33245872]
[1747243152856,0.9118443,103070.0,103060.0,0.04140008]
[1747243153057,0.9118443,103070.0,103060.0,0.65263258]
[1747243153747,0.9118443,103070.0,103060.0,0.45860008]
[1747243153952,0.9118443,103070.0,103060.0,0.65263258]
[1747243155362,0.7718443,103070.0,103060.0,0.45860008]
[1747243155656,1.1518443,103070.0,103060.0,0.45860008]
[1747243156057,1.33819211,103070.0,103060.0,0.41720008]
[1747243157757,1.1518443,103070.0,103060.0,0.41720008]
[1747243158961,1.1518443,103070.0,103060.0,8e-08]
[1747243161361,1.1518443,103070.0,103060.0,0.03320008]
[1747243161559,1.1518443,103070.0,103060.0,0.09670008]
[1747243161964,1.3980043,103070.0,103060.0,0.09670008]
[1747243163958,1.3980043,103070.0,103060.0,0.06370008]
[1747243164460,1.58435211,103070.0,103060.0,8e-08]
[1747243165265,1.68138011,103070.0,103060.0,8e-08]
[1747243165453,1.93138011,103070.0,103060.0,8e-08]
[1747243166160,2.09338011,103070.0,103060.0,8e-08]
[1747243167563,0.1940702,103040.0,103030.0,0.60009247]
[1747243167758,0.8000302,103040.0,103030.0,0.19289247]
[1747243167959,1.0059302,103040.0,103030.0,0.18289247]
[1747243168361,1.41227801,103040.0,103030.0,0.14989247]
[1747243168969,1.08227801,103040.0,103030.0,0.14989247]
[1747243169269,1.15227801,103040.0,103030.0,0.15089247]
[1747243169767,1.16665554,103040.0,103030.0,0.15089247]
[1747243169966,1.09665554,103040.0,103030.0,0.15089247]
[1747243170161,1.45665554,103040.0,103030.0,0.15089247]
[1747243170569,1.27230773,103040.0,103030.0,0.15089247]
[1747243171060,1.04430773,103040.0,103030.0,0.00194109]
[1747243171367,1.23065554,103040.0,103030.0,0.00194109]
[1747243171570,1.44065554,103040.0,103030.0,0.00194109]
[1747243173471,1.44065554,103040.0,103030.0,9e-08]
[1747243179773,1.44065554,103040.0,103030.0,0.01517318]
[1747243181176,1.44065554,103040.0,103030.0,0.04687318]
[1747243181876,1.19549554,103040.0,103030.0,0.04687318]
[1747243182071,0.92178773,103040.0,103030.0,0.05687318]
[1747243182378,0.92178773,103040.0,103030.0,0.10817318]
[1747243182379,1.16450773,103040.0,103030.0,0.10817318]
[1747243182977,1.15442773,103040.0,103030.0,0.11817318]
[1747243183476,1.24422773,103040.0,103030.0,0.11817318]
[1747243183776,0.88342773,103040.0,103030.0,0.11817318]
[1747243184082,0.21244773,103040.0,103030.0,0.85940999]
[1747243184380,0.21244773,103040.0,103030.0,0.95646438]
[1747243186470,0.21244773,103040.0,103030.0,0.59566438]
[1747243186672,0.21244773,103040.0,103030.0,0.95646438]
[1747243187080,0.004,103040.0,103030.0,1.72072038]
[1747243187982,0.1940419,103060.0,103050.0,0.1940514]
[1747243188182,0.1940419,103060.0,103050.0,1.19556011]
[1747243188383,0.1940419,103060.0,103050.0,1.29036011]
[1747243188679,0.1940419,103060.0,103050.0,1.3874145]
[1747243189081,0.1940419,103060.0,103050.0,1.20106669]
[1747243189882,0.1950419,103060.0,103050.0,1.20106669]
[1747243190678,0.1960419,103060.0,103050.0,1.20106669]
[1747243191382,0.1960419,103060.0,103050.0,2.70106669]
[1747243192678,0.1960419,103060.0,103050.0,2.27187888]
[1747243192888,0.2286419,103060.0,103050.0,2.45822669]
[1747243194985,0.2286419,103060.0,103050.0,2.87542669]
[1747243195883,0.1960419,103060.0,103050.0,2.87542669]
[1747243196884,0.5897419,103060.0,103050.0,2.51462669]
[1747243197082,0.5897419,103060.0,103050.0,2.12422748]
[1747243197281,0.6206419,103060.0,103050.0,2.31827888]
[1747243197484,0.6206419,103060.0,103050.0,0.10997309]
[1747243197982,0.6206419,103060.0,103050.0,0.30402449]
[1747243198178,0.6206419,103060.0,103050.0,0.10997309]
[1747243198387,0.6206419,103060.0,103050.0,0.01517309]
[1747243198581,0.6206419,103060.0,103050.0,0.04837309]
[1747243199078,0.6206419,103060.0,103050.0,0.08047309]
[1747243201691,0.6206419,103060.0,103050.0,0.4608723]
[1747243202477,0.6206419,103060.0,103050.0,0.3955723]
[1747243202683,0.6206419,103060.0,103050.0,0.2015209]
[1747243203088,0.6206419,103060.0,103050.0,0.04727309]
[1747243203887,0.6306419,103060.0,103050.0,0.04727309]
[1747243204489,0.81698971,103060.0,103050.0,0.04727309]
[1747243204687,0.80698971,103060.0,103050.0,0.01517309]
[1747243204892,1.01698971,103060.0,103050.0,0.01517309]
[1747243205490,0.8306419,103060.0,103050.0,0.01517309]
[1747243206896,1.01698971,103060.0,103050.0,0.01517309]
[1747243208094,0.8306419,103060.0,103050.0,0.01517309]
[1747243208488,0.8306419,103060.0,103050.0,0.04677309]
[1747243209189,0.8306419,103060.0,103050.0,0.01517309]
[1747243211700,0.8564419,103060.0,103050.0,0.4358723]
[1747243211903,0.6206419,103060.0,103050.0,0.4992723]
[1747243212093,0.8564419,103060.0,103050.0,0.4992723]
[1747243212294,0.6206419,103060.0,103050.0,0.59630786]
[1747243212789,0.2289419,103060.0,103050.0,0.95710786]
[1747243213194,0.2595419,103060.0,103050.0,0.40996005]
[1747243214989,0.2289419,103060.0,103050.0,0.59630786]
[1747243215298,0.2289419,103060.0,103050.0,0.95710786]
[1747243215500,0.6203419,103060.0,103050.0,0.40996005]
[1747243215690,0.6203419,103060.0,103050.0,0.39478696]
[1747243216004,0.6203419,103060.0,103050.0,0.8270136]
[1747243216394,0.6203419,103060.0,103050.0,1.01336141]
[1747243217003,0.2595419,103060.0,103050.0,1.01336141]
[1747243217204,0.2289419,103060.0,103050.0,1.37416141]
[1747243217700,0.2289419,103060.0,103050.0,1.01336141]
[1747243217900,0.5897419,103060.0,103050.0,0.8270136]
[1747243218100,0.6201419,103060.0,103050.0,0.8270136]
[1747243218703,0.2593419,103060.0,103050.0,0.8270136]
[1747243219198,1.04184971,103060.0,103050.0,0.44222664]
[1747243219404,1.40184971,103060.0,103050.0,0.43222664]
[1747243219598,1.05184971,103060.0,103050.0,0.43222664]
[1747243219799,0.8655019,103060.0,103050.0,0.43222664]
[1747243220002,0.8655019,103060.0,103050.0,0.46222664]
[1747243221510,1.41184971,103060.0,103050.0,0.43222664]
[1747243222006,1.2255019,103060.0,103050.0,0.01502664]
[1747243222208,1.41184971,103060.0,103050.0,0.01502664]
[1747243224906,1.94523352,103060.0,103050.0,4e-08]
[1747243225107,2.10723352,103060.0,103050.0,4e-08]
[1747243225303,1.92088571,103060.0,103050.0,4e-08]
[1747243225504,2.10723352,103060.0,103050.0,4e-08]
[1747243225706,1.92088571,103060.0,103050.0,4e-08]
[1747243226211,1.75888571,103060.0,103050.0,4e-08]
[1747243228300,1.27352571,103060.0,103050.0,4e-08]
[1747243228505,1.17648971,103060.0,103050.0,4e-08]
[1747243228705,1.64752971,103060.0,103050.0,4e-08]
[1747243230509,1.64752971,103060.0,103050.0,0.03270004]
[1747243231615,1.4611819,103060.0,103050.0,0.03270004]
[1747243232313,1.64752971,103060.0,103050.0,0.06590004]
[1747243232506,1.2511819,103060.0,103050.0,0.06590004]
[1747243232702,1.60752971,103060.0,103050.0,0.06590004]
[1747243232908,1.60752971,103060.0,103050.0,0.09860004]
[1747243233517,1.60752971,103060.0,103050.0,0.03270004]
[1747243234605,1.4211819,103060.0,103050.0,0.03270004]
[1747243234805,1.60752971,103060.0,103050.0,0.03270004]
[1747243235219,1.60752971,103060.0,103050.0,0.06290004]
[1747243235518,1.4211819,103060.0,103050.0,0.06290004]
[1747243235714,1.60752971,103060.0,103050.0,0.06290004]
[1747243235921,1.1863819,103060.0,103050.0,0.06290004]
[1747243236215,0.9947419,103060.0,103050.0,0.06290004]
[1747243236616,0.9947419,103060.0,103050.0,0.25695144]
[1747243236809,0.8550219,103060.0,103050.0,0.45329925]
[1747243237004,0.8246219,103060.0,103050.0,0.26695144]
[1747243237211,0.4638219,103060.0,103050.0,0.62775144]
[1747243237412,0.4308419,103060.0,103050.0,0.81409925]
[1747243237614,0.002,103060.0,103050.0,1.09748262]
[1747243237922,0.1960325,103060.0,103050.0,0.91113481]
[1747243238109,0.1960325,103060.0,103050.0,1.49441081]
[1747243239713,0.1960325,103060.0,103050.0,1.50429967]
[1747243239911,0.1960325,103060.0,103050.0,1.49441081]
[1747243240116,0.1960325,103060.0,103050.0,1.91161081]
[1747243240415,0.5568325,103060.0,103050.0,0.8233756]
[1747243240618,0.5882325,103060.0,103050.0,0.68415144]
[1747243240818,0.6210325,103060.0,103050.0,0.68415144]
[1747243241624,0.6210325,103060.0,103050.0,0.48010004]
[1747243241925,1.59702031,103060.0,103050.0,0.41720004]
[1747243242326,1.4106725,103060.0,103050.0,0.41720004]
[1747243242623,1.4006725,103060.0,103050.0,0.41720004]
[1747243242828,1.58702031,103060.0,103050.0,0.41720004]
[1747243244828,1.4017125,103060.0,103050.0,0.41720004]
[1747243245021,0.9310325,103060.0,103050.0,0.48180004]
[1747243245221,1.1671925,103060.0,103050.0,0.48180004]
[1747243245929,1.1671925,103060.0,103050.0,0.06460004]
[1747243246827,1.35354031,103060.0,103050.0,0.06460004]
[1747243247233,1.58782031,103060.0,103050.0,0.06460004]
[1747243247422,1.58782031,103060.0,103050.0,0.03310004]
[1747243248225,1.58782031,103060.0,103050.0,4e-08]
[1747243251329,1.58782031,103060.0,103050.0,0.03230004]
[1747243252522,1.58782031,103060.0,103050.0,4e-08]
[1747243253031,1.59182031,103060.0,103050.0,4e-08]
[1747243253530,1.59182031,103060.0,103050.0,0.03260004]
[1747243253531,1.59482031,103060.0,103050.0,0.03260004]
[1747243255334,1.59482031,103060.0,103050.0,4e-08]
[1747243257232,1.59338031,103060.0,103050.0,4e-08]
[1747243261541,1.1725125,103060.0,103050.0,4e-08]
[1747243261740,1.59302031,103060.0,103050.0,4e-08]
[1747243268654,1.12438031,103060.0,103050.0,4e-08]
[1747243268849,1.59230031,103060.0,103050.0,4e-08]
[1747243273361,0.1940702,103040.0,103030.0,0.06196009]
[1747243273661,0.194089,103030.0,103020.0,0.0316]
[1747243273958,1.019189,103030.0,103020.0,0.0316]
[1747243274157,1.20553681,103030.0,103020.0,0.0316]
[1747243274554,1.21530297,103030.0,103020.0,0.0316]
[1747243276661,1.21530297,103030.0,103020.0,0.0924]
[1747243278455,1.02895516,103030.0,103020.0,0.0924]
[1747243278661,1.21530297,103030.0,103020.0,0.0924]
[1747243279057,1.18500297,103030.0,103020.0,0.0924]
[1747243279451,1.65028297,103030.0,103020.0,0.0924]
[1747243284059,1.65028297,103030.0,103020.0,0.0306]
[1747243284261,0.1941079,103020.0,103010.0,0.07444706]
[1747243284454,1.18765571,103020.0,103010.0,0.10684706]
[1747243285250,1.18765571,103020.0,103010.0,0.01104706]
[1747243285452,0.1941456,103000.0,102990.0,0.07282875]
[1747243285655,3.49598532,103000.0,102970.0,0.24755675]
[1747243285857,1.10213111,102980.0,102970.0,0.20189545]
[1747243286070,0.1942021,102970.0,102960.0,0.73982571]
[1747243286373,1.3829021,102970.0,102960.0,0.75500874]
[1747243286664,1.56924991,102970.0,102960.0,0.81690874]
[1747243286865,1.58367634,102970.0,102960.0,0.81690874]
[1747243287267,1.58367634,102970.0,102960.0,0.75500874]
[1747243287461,1.39732853,102970.0,102960.0,0.75500874]
[1747243287672,1.58527634,102970.0,102960.0,0.75500874]
[1747243287857,1.58527634,102970.0,102960.0,0.81690874]
[1747243288053,1.5949093,102970.0,102960.0,0.81690874]
[1747243288368,0.68478149,102970.0,102960.0,0.82690874]
[1747243288573,0.21826149,102970.0,102960.0,1.02112974]
[1747243288762,0.68482149,102970.0,102960.0,1.02112974]
[1747243288962,0.68482149,102970.0,102960.0,1.01112974]
[1747243289364,1.2317693,102970.0,102960.0,0.81690874]
[1747243289563,1.2625693,102970.0,102960.0,0.81690874]
[1747243289763,1.2955693,102970.0,102960.0,0.81690874]
[1747243290366,1.6355693,102970.0,102960.0,0.81690874]
[1747243291173,0.84278149,102970.0,102960.0,1.01112974]
[1747243291471,0.20862853,102970.0,102960.0,1.53545012]
[1747243291666,0.01442643,102970.0,102960.0,1.53545012]
[1747243291974,0.8370614,102980.0,102970.0,0.1942021]
[1747243292161,0.8369814,102980.0,102970.0,0.30648513]
[1747243292363,1.02332921,102980.0,102970.0,0.11228303]
[1747243292566,1.05522921,102980.0,102970.0,0.11228303]
[1747243292770,1.08682921,102980.0,102970.0,0.11228303]
[1747243293167,0.85338921,102980.0,102970.0,0.11228303]
[1747243293368,1.08778921,102980.0,102970.0,0.11228303]
[1747243293568,1.08878921,102980.0,102970.0,0.11228303]
[1747243294072,1.08978921,102980.0,102970.0,0.11228303]
[1747243294267,1.10978921,102980.0,102970.0,0.11228303]
[1747243294773,1.18978921,102980.0,102970.0,0.11228303]
[1747243294971,1.20430747,102980.0,102970.0,0.11228303]
[1747243295366,1.31430747,102980.0,102970.0,0.07928303]
[1747243296771,1.31430747,102980.0,102970.0,0.01518303]
[1747243300577,1.12691966,102980.0,102970.0,0.01518303]
[1747243300780,1.07990747,102980.0,102970.0,0.07788303]
[1747243300969,1.31318747,102980.0,102970.0,0.07788303]
[1747243301278,1.07990747,102980.0,102970.0,0.07788303]
[1747243301480,1.31318747,102980.0,102970.0,0.07788303]
[1747243301867,1.31318747,102980.0,102970.0,0.01518303]
[1747243305984,1.31318747,102980.0,102950.0,0.0921326]
[1747243305985,0.194221,102960.0,102950.0,0.1548326]
[1747243306276,2.11419662,102960.0,102950.0,0.1548326]
[1747243306487,2.17739662,102960.0,102950.0,0.1548326]
[1747243306985,1.99104881,102960.0,102950.0,0.1548326]
[1747243307177,1.99104881,102960.0,102950.0,0.1588326]
[1747243309079,1.99104881,102960.0,102950.0,0.0961326]
[1747243309774,1.99104881,102960.0,102950.0,0.1582326]
[1747243309974,1.804701,102960.0,102950.0,0.1582326]
[1747243310175,1.99104881,102960.0,102950.0,0.1582326]
[1747243310376,1.804701,102960.0,102950.0,0.1582326]
[1747243310577,1.99044881,102960.0,102950.0,0.1582326]
[1747243312283,1.339021,102960.0,102950.0,0.1582326]
[1747243312486,1.59978881,102960.0,102950.0,0.1582326]
[1747243312685,2.01148881,102960.0,102950.0,0.1582326]
[1747243313273,2.19783662,102960.0,102950.0,0.1582326]
[1747243313477,2.19783662,102960.0,102930.0,0.00097149]
[1747243313683,0.74140651,102940.0,102930.0,0.06207149]
[1747243313981,0.97440651,102940.0,102930.0,0.06207149]
[1747243314185,0.6187587,102940.0,102930.0,0.06207149]
[1747243314388,1.03368698,102940.0,102930.0,0.06207149]
[1747243314586,1.02639768,102940.0,102930.0,0.06207149]
[1747243314789,1.34639768,102940.0,102930.0,0.06207149]
[1747243315088,0.84004987,102940.0,102930.0,0.06207149]
[1747243315289,0.84004987,102940.0,102930.0,0.06707149]
[1747243315483,1.02639768,102940.0,102930.0,0.06707149]
[1747243315683,1.02639768,102940.0,102930.0,0.06907149]
[1747243315887,0.84004987,102940.0,102930.0,0.06907149]
[1747243316082,0.57470987,102940.0,102930.0,0.26334909]
[1747243316389,0.41582987,102940.0,102930.0,0.36049777]
[1747243316776,0.41582987,102940.0,102930.0,0.54684558]
[1747243316980,0.41582987,102940.0,102930.0,0.36249777]
[1747243317180,0.77662987,102940.0,102930.0,0.07107149]
[1747243317381,0.80788987,102940.0,102930.0,0.07107149]
[1747243317784,0.80788987,102940.0,102930.0,0.26534909]
[1747243318282,0.83848987,102940.0,102930.0,0.07107149]
[1747243318481,0.60440987,102940.0,102930.0,0.08625717]
[1747243318789,0.80748987,102940.0,102930.0,0.28053477]
[1747243320191,0.99383768,102940.0,102930.0,0.08625717]
[1747243320392,1.36613768,102940.0,102930.0,0.08625717]
[1747243320590,1.02613768,102940.0,102930.0,0.08625717]
[1747243321091,0.83978987,102940.0,102930.0,0.08625717]
[1747243321593,0.58331196,102940.0,102930.0,0.46688258]
[1747243321795,0.44652987,102940.0,102930.0,0.47688258]
[1747243321984,0.41562987,102940.0,102930.0,0.67117926]
[1747243322385,0.18210987,102940.0,102930.0,0.67117926]
[1747243322584,0.18210987,102940.0,102930.0,1.03197926]
[1747243323480,0.18210987,102940.0,102930.0,0.93483126]
[1747243323795,0.18210987,102940.0,102930.0,1.03197926]
[1747243323994,0.18210987,102940.0,102930.0,1.44917926]
[1747243325288,0.2268446,102950.0,102940.0,0.1942587]
[1747243325494,0.196221,102960.0,102950.0,0.1942399]
[1747243325683,0.196221,102960.0,102950.0,0.46977339]
[1747243325993,0.229221,102960.0,102950.0,0.92772207]
[1747243326495,0.229221,102960.0,102950.0,0.56692207]
[1747243326896,0.229221,102960.0,102950.0,0.55173639]
[1747243327194,0.229221,102960.0,102950.0,0.56691803]
[1747243327694,0.229221,102960.0,102950.0,0.56791803]
[1747243328896,0.229221,102960.0,102950.0,0.56991803]
[1747243329995,0.229221,102960.0,102950.0,0.98711803]
[1747243331890,0.196221,102960.0,102950.0,0.98711803]
[1747243332089,0.226821,102960.0,102950.0,0.98711803]
[1747243332901,0.226821,102960.0,102950.0,0.97711803]
[1747243333496,0.587621,102960.0,102950.0,0.97711803]
[1747243334499,0.620921,102960.0,102950.0,0.97711803]
[1747243338295,0.620921,102960.0,102950.0,0.98711803]
[1747243338902,0.260121,102960.0,102950.0,1.34791803]
[1747243339405,0.226821,102960.0,102950.0,1.34791803]
[1747243342205,0.226821,102960.0,102950.0,1.34813711]
[1747243342601,0.0326,102960.0,102950.0,1.34813711]
[1747243342911,0.002,102960.0,102950.0,1.02806511]
[1747243343108,0.002,102960.0,102950.0,1.44526511]
[1747243343407,0.002,102960.0,102950.0,1.02806511]
[1747243343905,0.196221,102960.0,102950.0,1.02806511]
[1747243344110,0.0346,102960.0,102950.0,1.02806511]
[1747243344298,0.228821,102960.0,102950.0,1.02806511]
[1747243344698,0.0346,102960.0,102950.0,1.49302511]
[1747243345398,0.002,102960.0,102950.0,1.49302511]
[1747243345892,0.228821,102960.0,102950.0,1.49302511]
[1747243346807,0.0346,102960.0,102950.0,1.49302511]
[1747243347208,0.0346,102960.0,102950.0,1.02806511]
[1747243347412,0.0346,102960.0,102950.0,1.49370511]
[1747243347911,0.002,102960.0,102950.0,1.49370511]
[1747243348299,0.0329,102960.0,102950.0,1.49370511]
[1747243349710,0.227121,102960.0,102950.0,1.49370511]
[1747243349906,0.227121,102960.0,102950.0,1.02806511]
[1747243350109,0.227121,102960.0,102950.0,0.3837893]
[1747243350302,0.674121,102960.0,102950.0,0.22264062]
[1747243351409,0.674121,102960.0,102950.0,0.01840072]
[1747243351715,0.674121,102960.0,102950.0,0.21264062]
[1747243352010,1.38214881,102960.0,102950.0,0.01840072]
[1747243352210,0.885801,102960.0,102950.0,0.01840072]
[1747243352404,1.67534881,102960.0,102950.0,0.01840072]
[1747243353913,1.86169662,102960.0,102950.0,2e-08]
[1747243354118,2.08734881,102960.0,102950.0,2e-08]
[1747243355219,2.37082462,102960.0,102950.0,2e-08]
[1747243356214,3.47270462,102960.0,102950.0,2e-08]
[1747243356412,0.1942587,102940.0,102930.0,0.19860179]
[1747243356609,1.5180587,102940.0,102930.0,0.3849496]